bitfinex/quotes_BTCUSD_20240819
["timestamp","ask_amount","ask_price","bid_price","bid_amount"]
[1724099619254,0.168764,59254.0,59253.0,0.0009042]
[1724099619472,0.247864,59254.0,59253.0,0.0009042]
[1724099619686,0.585393,59254.0,59253.0,0.0009042]
[1724099620129,0.0551,59263.0,59253.0,0.0009042]
[1724099620130,0.0551,59263.0,59253.0,0.17225297]
[1724099620337,0.0799,59264.0,59254.0,0.23862338]
[1724099620557,0.337479,59263.0,59254.0,0.23524877]
[1724099620808,0.168746,59261.0,59256.0,0.168758]
[1724099621016,0.0799,59264.0,59257.0,0.17134877]
[1724099621226,0.168746,59261.0,59257.0,0.17134877]
[1724099621447,0.16875,59259.0,59258.0,0.1]
[1724099621660,0.506251,59259.0,59258.0,0.1]
[1724099622485,0.16875,59259.0,59258.0,0.1]
[1724099622700,0.17075,59259.0,59258.0,0.1]
[1724099623766,0.002,59259.0,59258.0,0.1]
[1724099624198,0.007,59259.0,59258.0,0.1]
[1724099624628,0.17575,59259.0,59258.0,0.1]
[1724099626734,0.17575,59259.0,59258.0,0.11729524]
[1724099630008,0.007,59259.0,59258.0,0.11729524]
[1724099630184,0.17575,59259.0,59258.0,0.11729524]
[1724099630417,0.007,59259.0,59258.0,0.11729524]
[1724099630629,0.17575,59259.0,59258.0,0.11729524]
[1724099630837,0.513251,59259.0,59258.0,0.11729524]
[1724099631087,1.266453,59259.0,59258.0,0.01729524]
[1724099631314,0.506293,59254.0,59253.0,0.0009042]
[1724099632234,0.506293,59254.0,59253.0,0.01835724]
[1724099632460,0.506293,59254.0,59253.0,0.0009042]
[1724099632676,0.506293,59254.0,59253.0,0.01835724]
[1724099633109,0.168764,59254.0,59253.0,0.01835724]
[1724099633527,0.168764,59254.0,59253.0,0.0009042]
[1724099633734,0.168764,59254.0,59253.0,0.0019042]
[1724099633942,0.506293,59254.0,59253.0,0.01935724]
[1724099634151,0.506293,59254.0,59253.0,0.0019042]
[1724099634360,0.506293,59254.0,59253.0,0.01935724]
[1724099634573,0.843822,59254.0,59253.0,0.0009042]
[1724099634773,0.843822,59254.0,59253.0,0.01835724]
[1724099634978,0.849822,59254.0,59253.0,0.0009042]
[1724099635426,0.847822,59254.0,59253.0,0.01835724]
[1724099635628,0.847822,59254.0,59253.0,0.0009042]
[1724099636529,0.847822,59254.0,59253.0,0.01838793]
[1724099636746,0.849822,59254.0,59253.0,0.0009042]
[1724099636953,0.508293,59254.0,59253.0,0.01838793]
[1724099637158,0.513293,59254.0,59253.0,0.0019042]
[1724099637566,0.513293,59254.0,59253.0,0.01938793]
[1724099637772,0.513293,59254.0,59253.0,0.0019042]
[1724099637987,0.007,59254.0,59253.0,0.6970387]
[1724099638206,0.007,59254.0,59253.0,1.08338997]
[1724099638420,0.007,59254.0,59253.0,2.9384087]
[1724099639691,0.007,59254.0,59253.0,2.8721087]
[1724099639912,0.000822,59259.0,59255.0,0.337521]
[1724099640121,0.000822,59259.0,59258.0,0.168753]
[1724099640556,0.000822,59259.0,59258.0,0.52373605]
[1724099641403,0.005822,59259.0,59258.0,0.52373605]
[1724099641605,0.007822,59259.0,59258.0,0.52373605]
[1724099642925,0.007822,59259.0,59258.0,0.86124305]
[1724099643174,0.007822,59259.0,59258.0,0.93854305]
[1724099643930,0.007822,59259.0,59258.0,0.94875119]
[1724099644667,0.007822,59259.0,59258.0,1.51960696]
[1724099645138,0.007822,59259.0,59258.0,1.61960696]
[1724099646645,0.005822,59259.0,59258.0,1.61960696]
[1724099646907,0.000822,59259.0,59258.0,1.62460696]
[1724099647167,0.000822,59259.0,59258.0,1.62960696]
[1724099647649,0.000822,59259.0,59258.0,3.12960696]
[1724099650989,0.000822,59259.0,59258.0,1.62960696]
[1724099651431,0.000822,59259.0,59258.0,3.12960696]
[1724099651433,0.000822,59259.0,59258.0,3.46711396]
[1724099652414,0.000821,59267.0,59266.0,1.324913]
[1724099652705,0.000821,59267.0,59266.0,1.83296177]
[1724099652986,0.000821,59267.0,59266.0,2.18876366]
[1724099653941,0.000821,59267.0,59266.0,2.19076366]
[1724099654160,0.000821,59267.0,59266.0,2.19276366]
[1724099654585,0.000821,59267.0,59266.0,2.19076366]
[1724099654811,0.000821,59267.0,59266.0,2.20276366]
[1724099655018,0.000821,59267.0,59266.0,3.70176366]
[1724099655464,0.000821,59267.0,59266.0,3.71576366]
[1724099656591,0.000821,59267.0,59266.0,3.72605088]
[1724099657265,0.1,59269.0,59268.0,1.855975]
[1724099657478,0.1,59269.0,59268.0,2.66481377]
[1724099657479,0.04292966,59269.0,59268.0,2.66481377]
[1724099657694,0.04292966,59269.0,59268.0,2.66681377]
[1724099657898,0.04292966,59269.0,59268.0,4.1841156]
[1724099658530,0.04292966,59269.0,59268.0,4.1981156]
[1724099658745,0.00918566,59269.0,59268.0,4.1841156]
[1724099658979,5e-07,59273.0,59272.0,0.347753]
[1724099659196,5e-07,59273.0,59272.0,1.55365577]
[1724099659412,0.00040724,59288.0,59272.0,1.55365577]
[1724099659413,0.00040724,59288.0,59278.0,1.596615]
[1724099659647,0.00040724,59288.0,59278.0,2.56574977]
[1724099659937,0.00040724,59288.0,59278.0,4.04894438]
[1724099660153,0.00040724,59288.0,59278.0,4.04494438]
[1724099661446,0.057,59299.0,59280.0,0.001]
[1724099661666,0.057,59299.0,59278.0,2.18828338]
[1724099661667,0.0002,59299.0,59298.0,1.584255]
[1724099661878,0.0002,59299.0,59298.0,1.85660377]
[1724099662087,0.0002,59299.0,59298.0,3.39647036]
[1724099662514,0.00821,59303.0,59300.0,1.833106]
[1724099662733,0.00821,59303.0,59300.0,2.10245477]
[1724099662949,0.00821,59303.0,59300.0,2.14223073]
[1724099663163,0.00821,59303.0,59300.0,2.47949873]
[1724099664055,0.00821,59303.0,59300.0,1.88153073]
[1724099664471,0.00821,59303.0,59300.0,1.89553073]
[1724099665136,0.00821,59303.0,59300.0,1.90953073]
[1724099665346,0.00821,59303.0,59300.0,1.89553073]
[1724099666215,0.00821,59303.0,59300.0,1.90953073]
[1724099666485,0.00821,59303.0,59300.0,1.89553073]
[1724099666692,0.00821,59303.0,59300.0,1.90953073]
[1724099667103,0.00821,59303.0,59300.0,1.89553073]
[1724099667529,0.00821,59303.0,59300.0,3.40953073]
[1724099667773,0.00821,59303.0,59300.0,3.39553073]
[1724099667986,0.00821,59303.0,59300.0,3.40953073]
[1724099668402,0.00821,59303.0,59300.0,3.39553073]
[1724099668616,0.00821,59303.0,59300.0,3.33383073]
[1724099670088,0.051446,59301.0,59300.0,3.33383073]
[1724099670326,0.129846,59301.0,59300.0,1.15929473]
[1724099670758,0.129846,59301.0,59300.0,0.21340996]
[1724099670970,0.186646,59301.0,59300.0,0.21340996]
[1724099671401,0.186646,59301.0,59300.0,0.18540996]
[1724099671647,0.186646,59301.0,59300.0,0.19140996]
[1724099671857,0.186646,59301.0,59300.0,0.02277596]
[1724099672074,0.186646,59301.0,59300.0,0.01677596]
[1724099672287,0.692539,59301.0,59300.0,0.006]
[1724099673144,0.692539,59301.0,59300.0,0.012]
[1724099673558,0.355277,59301.0,59300.0,0.012]
[1724099673765,0.355277,59301.0,59300.0,0.006]
[1724099673970,0.186646,59301.0,59300.0,0.02259181]
[1724099674241,0.188646,59301.0,59300.0,0.001]
[1724099674443,0.359277,59301.0,59300.0,0.01859181]
[1724099674649,0.359277,59301.0,59300.0,0.002]
[1724099674862,0.359277,59301.0,59300.0,0.01859181]
[1724099676555,0.190646,59301.0,59300.0,0.86176181]
[1724099676814,0.133846,59301.0,59300.0,0.86176181]
[1724099677031,0.129846,59301.0,59300.0,0.85976181]
[1724099677238,0.130846,59301.0,59300.0,0.85976181]
[1724099677443,0.131846,59301.0,59300.0,0.86076181]
[1724099677651,0.131846,59301.0,59300.0,0.52249381]
[1724099677856,0.130846,59301.0,59300.0,0.85976181]
[1724099678084,0.132846,59301.0,59300.0,0.85976181]
[1724099679579,0.132846,59301.0,59300.0,0.52249381]
[1724099679790,0.132846,59301.0,59300.0,0.01659181]
[1724099680000,0.132846,59301.0,59300.0,0.18522581]
[1724099680204,0.132846,59301.0,59300.0,0.168634]
[1724099680412,0.132846,59301.0,59300.0,0.18522581]
[1724099680918,0.132846,59301.0,59300.0,0.52249381]
[1724099681429,0.132846,59301.0,59300.0,0.18522581]
[1724099681672,0.132846,59301.0,59300.0,0.52249381]
[1724099682665,0.132846,59301.0,59300.0,1.33583291]
[1724099682666,0.054446,59301.0,59300.0,1.33583291]
[1724099682939,0.054446,59301.0,59300.0,1.60718168]
[1724099683275,0.054446,59301.0,59300.0,1.94444968]
[1724099683496,0.054446,59301.0,59300.0,3.44444968]
[1724099683716,0.053446,59301.0,59300.0,3.44444968]
[1724099684129,0.052446,59301.0,59300.0,3.44444968]
[1724099684344,0.052446,59301.0,59300.0,3.45244968]
[1724099686203,0.051446,59301.0,59300.0,3.45244968]
[1724099686411,0.051446,59301.0,59300.0,3.46044968]
[1724099689303,0.051446,59301.0,59300.0,3.79771768]
[1724099689508,0.051446,59301.0,59300.0,3.82071768]
[1724099690358,0.051446,59301.0,59300.0,3.81271768]
[1724099690575,0.051446,59301.0,59300.0,3.45844968]
[1724099690774,0.051446,59301.0,59300.0,3.47244968]
[1724099691187,0.051446,59301.0,59300.0,3.45844968]
[1724099691384,0.051446,59301.0,59300.0,3.39524968]
[1724099691800,0.051446,59301.0,59300.0,3.36724968]
[1724099692002,0.051446,59301.0,59300.0,3.39524968]
[1724099692641,0.051446,59301.0,59300.0,3.38124968]
[1724099693360,0.051446,59301.0,59300.0,3.39524968]
[1724099695591,0.051446,59301.0,59300.0,3.33454968]
[1724099699054,0.051446,59301.0,59300.0,2.99728168]
[1724099701169,0.051446,59301.0,59300.0,2.98328168]
[1724099701425,0.051446,59301.0,59300.0,2.96928168]
[1724099701597,0.051446,59301.0,59300.0,2.98028168]
[1724099701792,0.051446,59301.0,59300.0,2.99028168]
[1724099702756,0.051446,59301.0,59300.0,3.39234968]
[1724099703084,0.051446,59301.0,59300.0,3.46944968]
[1724099707937,0.051446,59301.0,59300.0,3.32754968]
[1724099708761,0.051446,59301.0,59300.0,3.3374883]
[1724099709519,0.051446,59301.0,59300.0,3.4165883]
[1724099709936,0.051446,59301.0,59300.0,3.4812883]
[1724099713303,0.051446,59301.0,59300.0,3.8185563]
[1724099713525,0.051446,59301.0,59300.0,3.5042883]
[1724099714134,0.05104007,59301.0,59300.0,3.5042883]
[1724099720309,0.05104007,59301.0,59300.0,3.5052883]
[1724099720519,0.05104007,59301.0,59300.0,3.5092883]
[1724099720933,0.05104007,59301.0,59300.0,3.89656201]
[1724099721325,0.05104007,59301.0,59300.0,3.8425563]
[1724099721571,0.05104007,59301.0,59300.0,3.90756487]
[1724099721779,0.05104007,59301.0,59300.0,4.29554861]
[1724099721986,0.05104007,59301.0,59300.0,4.28454861]
[1724099722188,0.05104007,59301.0,59300.0,4.28449198]
[1724099722620,0.05104007,59301.0,59300.0,4.19754004]
[1724099722823,0.05104007,59301.0,59300.0,4.32255433]
[1724099723237,1e-08,59301.0,59300.0,4.19554004]
[1724099723648,1e-08,59301.0,59300.0,4.19754004]
[1724099723849,1e-08,59301.0,59300.0,4.32345011]
[1724099724203,1e-08,59301.0,59300.0,4.29745011]
[1724099724408,1e-08,59301.0,59300.0,4.31145011]
[1724099724584,1e-08,59301.0,59300.0,4.32545011]
[1724099724772,1e-08,59301.0,59300.0,4.32745011]
[1724099725872,1e-08,59301.0,59300.0,4.32345011]
[1724099726350,1e-08,59301.0,59300.0,4.32545011]
[1724099726557,1e-08,59301.0,59300.0,4.32745011]
[1724099726762,1e-08,59301.0,59300.0,4.32345011]
[1724099728173,1e-08,59301.0,59300.0,4.32545011]
[1724099728375,1e-08,59301.0,59300.0,4.32345011]
[1724099730054,1e-08,59301.0,59300.0,4.32545011]
[1724099730698,1e-08,59301.0,59300.0,4.32345011]
[1724099730901,1e-08,59301.0,59300.0,4.32545011]
[1724099731328,1e-08,59301.0,59300.0,4.66471811]
[1724099731575,1e-08,59301.0,59300.0,4.32745011]
[1724099731982,1e-08,59301.0,59300.0,4.32745572]
[1724099733036,1e-08,59301.0,59300.0,4.66472372]
[1724099733244,1e-08,59301.0,59300.0,4.68970908]
[1724099733451,1e-08,59301.0,59300.0,4.35244108]
[1724099734071,1e-08,59301.0,59300.0,4.34844108]
[1724099734276,1e-08,59301.0,59300.0,4.22351429]
[1724099734690,1e-08,59301.0,59300.0,4.56478229]
[1724099734893,1e-08,59301.0,59300.0,4.22751429]
[1724099736130,1e-08,59301.0,59300.0,4.22551429]
[1724099736551,1e-08,59301.0,59300.0,4.3254135]
[1724099736964,1e-08,59301.0,59300.0,3.86224629]
[1724099737374,1e-08,59301.0,59300.0,4.27442565]
[1724099738024,1e-08,59301.0,59300.0,4.27742565]
[1724099738868,1e-08,59301.0,59300.0,4.30042565]
[1724099739508,1e-08,59301.0,59300.0,4.29742565]
[1724099740150,1e-08,59301.0,59300.0,4.22251429]
[1724099740388,1e-08,59301.0,59300.0,4.29742898]
[1724099740604,1e-08,59301.0,59300.0,4.29742861]
[1724099740823,0.00821,59303.0,59302.0,1.517652]
[1724099741016,0.00821,59303.0,59302.0,2.09864475]
[1724099741268,0.00821,59303.0,59302.0,2.11353921]
[1724099741932,0.00821,59303.0,59302.0,2.12753921]
[1724099743657,0.00821,59303.0,59302.0,2.14153921]
[1724099745590,0.00821,59303.0,59302.0,2.11855473]
[1724099747730,0.08361,59303.0,59302.0,1.39463923]
[1724099747973,0.14041,59303.0,59302.0,1.39463923]
[1724099748595,0.14041,59303.0,59302.0,1.38063923]
[1724099749441,0.14041,59303.0,59302.0,1.48063923]
[1724099749641,0.14041,59303.0,59302.0,1.46663923]
[1724099749846,0.14041,59303.0,59302.0,1.48063923]
[1724099750261,0.14041,59303.0,59302.0,1.46663923]
[1724099750543,0.14041,59303.0,59302.0,1.48063923]
[1724099750760,0.154451,59303.0,59302.0,0.64877846]
[1724099750967,0.154451,59303.0,59302.0,0.53477846]
[1724099751174,0.154451,59303.0,59302.0,2.38603446]
[1724099751382,0.14041,59303.0,59302.0,2.38603446]
[1724099752249,0.14041,59303.0,59302.0,2.48603446]
[1724099753332,0.14041,59303.0,59302.0,0.98603446]
[1724099758847,0.08361,59303.0,59302.0,0.98603446]
[1724099759051,0.08361,59303.0,59302.0,1.32329046]
[1724099762680,0.08361,59303.0,59302.0,1.41779046]
[1724099763544,0.08361,59303.0,59302.0,0.74327846]
[1724099763706,0.08361,59303.0,59302.0,1.08053446]
[1724099765088,0.08361,59303.0,59302.0,0.74327846]
[1724099765288,0.08361,59303.0,59302.0,0.64877846]
[1724099765495,0.08361,59303.0,59302.0,0.98603446]
[1724099765948,0.08361,59303.0,59302.0,2.58053446]
[1724099766161,0.08361,59303.0,59302.0,1.08053446]
[1724099766555,0.08361,59303.0,59302.0,0.98603446]
[1724099766756,0.00821,59303.0,59302.0,1.49463923]
[1724099767494,0.00821,59303.0,59302.0,2.99463923]
[1724099768489,0.00821,59303.0,59302.0,3.07643923]
[1724099768949,0.00821,59303.0,59302.0,2.99463923]
[1724099770594,0.00821,59303.0,59302.0,3.41199523]
[1724099772294,0.00821,59303.0,59302.0,3.47769523]
[1724099773270,0.00821,59303.0,59302.0,3.81495123]
[1724099773515,0.00821,59303.0,59302.0,3.83895123]
[1724099774226,0.00821,59303.0,59302.0,3.84095123]
[1724099774463,0.00821,59303.0,59302.0,3.81495123]
[1724099774748,0.00821,59303.0,59302.0,3.82895123]
[1724099775482,0.00821,59303.0,59302.0,3.87894446]
[1724099775722,0.00821,59303.0,59302.0,4.20289666]
[1724099775957,0.00821,59303.0,59302.0,4.21289661]
[1724099776166,0.00821,59303.0,59302.0,4.21489661]
[1724099776465,0.00821,59303.0,59302.0,4.21689661]
[1724099776975,0.00821,59303.0,59302.0,4.21289661]
[1724099777176,0.00821,59303.0,59302.0,4.21489661]
[1724099777827,0.00821,59303.0,59302.0,4.21689661]
[1724099778689,0.00821,59303.0,59302.0,4.21289661]
[1724099779378,0.00821,59303.0,59302.0,3.88891345]
[1724099779809,0.00821,59303.0,59302.0,3.83895123]
[1724099780217,0.00821,59303.0,59302.0,3.88891345]
[1724099780445,0.00821,59303.0,59302.0,3.39759523]
[1724099780635,0.00821,59303.0,59302.0,1.49463923]
[1724099781289,0.00821,59303.0,59302.0,2.99463923]
[1724099782116,0.00821,59303.0,59302.0,2.98063923]
[1724099783394,0.00821,59303.0,59302.0,2.99463923]
[1724099783834,0.00821,59303.0,59302.0,2.98063923]
[1724099784042,0.00821,59303.0,59302.0,2.99463923]
[1724099784251,0.00821,59303.0,59302.0,3.46769523]
[1724099786544,0.00821,59303.0,59302.0,3.05493923]
[1724099786946,0.00821,59303.0,59302.0,3.13043923]
[1724099787143,0.00821,59303.0,59302.0,3.49069523]
[1724099787482,0.00821,59303.0,59302.0,3.82795123]
[1724099787695,0.00821,59303.0,59302.0,3.49069523]
[1724099790335,0.00821,59303.0,59302.0,2.99463923]
[1724099790768,0.00821,59303.0,59302.0,3.33189523]
[1724099793122,0.00821,59303.0,59302.0,3.40999523]
[1724099793259,0.00821,59303.0,59302.0,3.49729523]
[1724099798146,0.00821,59303.0,59302.0,3.49829523]
[1724099798344,0.00821,59303.0,59302.0,3.83755123]
[1724099799224,0.00821,59303.0,59302.0,3.50029523]
[1724099800614,0.00821,59303.0,59302.0,3.93195123]
[1724099803008,0.00821,59303.0,59302.0,3.59169523]
[1724099803621,0.00821,59303.0,59302.0,3.92895123]
[1724099803884,0.00821,59303.0,59302.0,3.92995123]
[1724099805351,0.00821,59303.0,59302.0,3.93195123]
[1724099805561,0.00821,59303.0,59302.0,3.64469161]
[1724099805998,0.00821,59303.0,59302.0,4.06867213]
[1724099806212,0.00821,59303.0,59302.0,4.04372406]
[1724099806431,0.00821,59303.0,59302.0,4.38098006]
[1724099806637,0.00821,59303.0,59302.0,4.04372406]
[1724099807043,0.00821,59303.0,59302.0,4.38098006]
[1724099807245,0.00821,59303.0,59302.0,4.04072406]
[1724099807444,0.00821,59303.0,59302.0,3.96867937]
[1724099807662,0.00821,59303.0,59302.0,4.38097439]
[1724099808091,0.00821,59303.0,59302.0,4.30293537]
[1724099808389,0.00821,59303.0,59302.0,3.96567937]
[1724099808695,0.00821,59303.0,59302.0,3.6667605]
[1724099808870,0.00821,59303.0,59302.0,4.37798973]
[1724099809182,0.00821,59303.0,59302.0,4.37798947]
[1724099809403,0.00821,59303.0,59302.0,4.0040165]
[1724099809812,0.00821,59303.0,59302.0,3.6667605]
[1724099809943,0.00821,59303.0,59302.0,3.64174294]
[1724099810351,0.00821,59303.0,59302.0,3.97899894]
[1724099810551,0.00821,59303.0,59302.0,3.30448694]
[1724099810753,0.00821,59303.0,59302.0,2.99463923]
[1724099810754,0.14021,59303.0,59302.0,2.99463923]
[1724099811562,0.14021,59303.0,59302.0,2.98063923]
[1724099811768,0.08341,59303.0,59302.0,2.98063923]
[1724099811962,0.08341,59303.0,59302.0,2.98963923]
[1724099812370,0.08341,59303.0,59302.0,2.98063923]
[1724099812783,0.08341,59303.0,59302.0,2.97563923]
[1724099813201,0.08341,59303.0,59302.0,2.98563923]
[1724099813843,0.08341,59303.0,59302.0,1.48563923]
[1724099814075,0.00821,59303.0,59302.0,1.88419523]
[1724099814440,0.00821,59303.0,59302.0,3.38419523]
[1724099817234,0.00821,59303.0,59302.0,3.32289523]
[1724099826133,0.00821,59303.0,59302.0,2.98563923]
[1724099826336,0.14301,59303.0,59302.0,2.64838323]
[1724099826760,0.14301,59303.0,59302.0,0.97703446]
[1724099826975,0.14301,59303.0,59302.0,1.31429046]
[1724099829567,0.14301,59303.0,59302.0,1.48563923]
[1724099829568,0.00821,59303.0,59302.0,1.48563923]
[1724099829976,0.00821,59303.0,59302.0,1.8729958]
[1724099830387,0.00821,59303.0,59302.0,1.89807657]
[1724099830591,0.00821,59303.0,59302.0,1.82289523]
[1724099830796,0.00821,59303.0,59302.0,3.32289523]
[1724099830996,0.00821,59303.0,59302.0,3.31389523]
[1724099831196,0.00821,59303.0,59302.0,3.31689523]
[1724099831407,0.00821,59303.0,59302.0,3.32989523]
[1724099831844,0.00821,59303.0,59302.0,3.88435997]
[1724099832051,0.00821,59303.0,59302.0,3.43519523]
[1724099832256,0.00821,59303.0,59302.0,3.88435683]
[1724099832459,0.00821,59303.0,59302.0,3.88435986]
[1724099832873,0.00821,59303.0,59302.0,4.22161451]
[1724099833082,0.00821,59303.0,59302.0,3.95035851]
[1724099833294,0.00821,59303.0,59302.0,3.87517717]
[1724099833716,0.00821,59303.0,59302.0,3.87217717]
[1724099833928,0.00821,59303.0,59302.0,3.94732234]
[1724099834135,0.00821,59303.0,59302.0,3.87317717]
[1724099834340,0.00821,59303.0,59302.0,3.94832788]
[1724099834542,0.00821,59303.0,59302.0,3.95032495]
[1724099835357,0.00821,59303.0,59302.0,3.94732495]
[1724099836641,0.00821,59303.0,59302.0,4.04172495]
[1724099837472,0.00821,59303.0,59302.0,4.37898095]
[1724099837601,0.00821,59303.0,59302.0,4.04472495]
[1724099838036,0.00821,59303.0,59302.0,4.04172495]
[1724099838565,0.00821,59303.0,59302.0,3.59259523]
[1724099838766,0.00821,59303.0,59302.0,4.04271709]
[1724099838971,0.00821,59303.0,59302.0,4.04171709]
[1724099841235,0.00821,59303.0,59302.0,4.37897309]
[1724099841441,0.00821,59303.0,59302.0,4.04171709]
[1724099841817,0.00821,59303.0,59302.0,4.37897309]
[1724099842792,0.00821,59303.0,59302.0,4.04171709]
[1724099843379,0.00821,59303.0,59302.0,4.04171307]
[1724099843762,0.00821,59303.0,59302.0,4.30483076]
[1724099843895,0.00821,59303.0,59302.0,4.30683076]
[1724099844313,0.00821,59303.0,59302.0,4.38193406]
[1724099844917,0.00821,59303.0,59302.0,4.38393406]
[1724099845249,0.00821,59303.0,59302.0,4.43406128]
[1724099845427,0.00821,59303.0,59302.0,4.30883076]
[1724099846256,0.00821,59303.0,59302.0,4.28283076]
[1724099846434,0.00821,59303.0,59302.0,4.29683076]
[1724099846630,0.00821,59303.0,59302.0,4.31083076]
[1724099848045,0.00821,59303.0,59302.0,4.33654015]
[1724099848258,0.00821,59303.0,59302.0,4.43094015]
[1724099848487,0.00821,59303.0,59302.0,4.43194015]
[1724099850264,0.00821,59303.0,59302.0,4.43394015]
[1724099850746,0.00821,59303.0,59302.0,4.43594015]
[1724099851394,0.00821,59303.0,59302.0,4.31080383]
[1724099851812,0.00821,59303.0,59302.0,4.43594015]
[1724099852767,0.00821,59303.0,59302.0,4.44415015]
[1724099853973,0.00821,59303.0,59302.0,4.44015015]
[1724099854468,0.00821,59303.0,59302.0,4.31501383]
[1724099856243,0.00821,59303.0,59302.0,4.31701383]
[1724099856658,0.00821,59303.0,59302.0,4.31901383]
[1724099857312,0.00821,59303.0,59302.0,4.31501383]
[1724099859734,0.00821,59303.0,59302.0,4.31701383]
[1724099860127,0.00821,59303.0,59302.0,4.31901383]
[1724099860575,0.00821,59303.0,59302.0,4.44415015]
[1724099860992,0.00821,59303.0,59302.0,4.34575015]
[1724099861200,0.00821,59303.0,59302.0,4.26885311]
[1724099861856,0.00821,59303.0,59302.0,4.26985311]
[1724099862935,0.00821,59303.0,59302.0,4.27185311]
[1724099863548,0.00821,59303.0,59302.0,4.41155311]
[1724099863751,0.00821,59303.0,59302.0,4.41255311]
[1724099864976,0.00040711,59308.0,59307.0,2.093454]
[1724099865201,0.00040711,59308.0,59307.0,2.38780277]
[1724099865312,0.00040711,59308.0,59307.0,2.32421048]
[1724099865516,0.00040711,59308.0,59307.0,3.82421048]
[1724099866183,0.00040711,59308.0,59307.0,3.83821048]
[1724099867168,0.00040711,59308.0,59307.0,3.85221048]
[1724099869255,0.00040711,59308.0,59307.0,3.8621861]
[1724099869657,0.00122911,59308.0,59307.0,3.8621861]
[1724099871836,0.00122911,59308.0,59307.0,3.91226194]
[1724099873257,0.00122911,59308.0,59307.0,3.8621861]
[1724099873700,0.00122911,59308.0,59307.0,3.8651861]
[1724099874311,0.00122911,59308.0,59307.0,4.31425532]
[1724099874661,0.00122911,59308.0,59307.0,4.55508332]
[1724099874891,0.00122911,59308.0,59307.0,4.69961343]
[1724099875287,0.00122911,59308.0,59307.0,4.57436955]
[1724099875550,0.00122911,59308.0,59307.0,4.57434139]
[1724099875857,0.00122911,59308.0,59307.0,4.69963116]
[1724099876660,0.00122911,59308.0,59307.0,4.69863116]
[1724099877390,0.00122911,59308.0,59307.0,4.63283116]
[1724099878238,0.00122911,59308.0,59307.0,4.60873057]
[1724099878445,0.00122911,59308.0,59307.0,4.65344139]
[1724099879006,0.00122911,59308.0,59307.0,4.65544139]
[1724099879221,0.00122911,59308.0,59307.0,4.65744139]
[1724099879627,0.00122911,59308.0,59307.0,4.64344139]
[1724099879835,0.00040706,59315.0,59313.0,0.005]
[1724099880011,6e-08,59319.0,59318.0,0.508747]
[1724099880216,6e-08,59319.0,59318.0,2.43586806]
[1724099880413,6e-08,59319.0,59318.0,4.31089929]
[1724099880641,6e-08,59319.0,59318.0,4.65006429]
[1724099881817,6e-08,59319.0,59318.0,4.64806429]
[1724099882422,0.07830698,59326.0,59325.0,1.179941]
[1724099882581,0.07830698,59326.0,59325.0,1.54568977]
[1724099882785,0.07830698,59326.0,59325.0,1.56051218]
[1724099883005,0.07830698,59326.0,59325.0,3.06051218]
[1724099883792,0.07830698,59326.0,59325.0,3.08441164]
[1724099883990,0.07830698,59326.0,59325.0,3.09841164]
[1724099890926,0.00822,59329.0,59326.0,0.0755]
[1724099891093,0.00822,59329.0,59328.0,1.85823477]
[1724099891505,0.00822,59329.0,59328.0,3.83311991]
[1724099891952,0.00822,59329.0,59328.0,3.86789991]
[1724099892622,0.00822,59329.0,59328.0,3.88189991]
[1724099892819,0.00822,59329.0,59328.0,3.86789991]
[1724099893051,0.00822,59329.0,59328.0,3.88589991]
[1724099893466,1e-06,59329.0,59328.0,4.22300791]
[1724099893669,1e-06,59329.0,59328.0,4.29950791]
[1724099893902,1e-06,59329.0,59328.0,4.29550791]
[1724099894091,1e-06,59329.0,59328.0,3.95739991]
[1724099894331,1e-06,59329.0,59328.0,3.42551191]
[1724099894535,1e-06,59329.0,59328.0,3.33111191]
[1724099894757,1e-06,59329.0,59328.0,3.42551191]
[1724099895179,1e-06,59329.0,59328.0,3.08840391]
[1724099895390,0.081601,59329.0,59328.0,1.49400391]
[1724099895606,0.138401,59329.0,59328.0,0.21133114]
[1724099895806,0.138401,59329.0,59328.0,0.88554714]
[1724099896254,0.138401,59329.0,59328.0,0.21133114]
[1724099896490,0.138401,59329.0,59328.0,0.18333114]
[1724099896694,0.138401,59329.0,59328.0,0.52843914]
[1724099896897,0.138401,59329.0,59328.0,0.53643914]
[1724099897320,0.138401,59329.0,59328.0,0.63643914]
[1724099897550,0.138401,59329.0,59328.0,1.06794714]
[1724099897991,0.138401,59329.0,59307.0,0.51404632]
[1724099897992,0.001,59319.0,59307.0,0.51404632]
[1724099898228,0.0964,59323.0,59307.0,0.85127032]
[1724099898229,0.0944,59322.0,59307.0,0.85127032]
[1724099898436,0.0944,59325.0,59307.0,0.0944]
[1724099898664,0.16858,59319.0,59302.0,0.00986008]
[1724099898864,0.56484,59319.0,59302.0,0.00986008]
[1724099899081,0.904,59319.0,59302.0,0.51404632]
[1724099899294,0.904,59319.0,59318.0,0.0019042]
[1724099899514,1.24116,59319.0,59318.0,0.0019042]
[1724099899726,1.23816,59319.0,59318.0,0.0009042]
[1724099899950,1.23916,59319.0,59318.0,0.0019042]
[1724099900084,1.24116,59319.0,59318.0,0.0019042]
[1724099900293,1.24116,59319.0,59318.0,0.0029042]
[1724099900494,1.23816,59319.0,59318.0,0.0029042]
[1724099901359,1.362476,59319.0,59318.0,0.0029042]
[1724099901527,1.23816,59319.0,59318.0,0.0019042]
[1724099901947,1.24816,59319.0,59318.0,0.0029042]
[1724099902985,1.24516,59319.0,59318.0,0.0029042]
[1724099903177,1.24616,59319.0,59318.0,0.0029042]
[1724099903346,1.24816,59319.0,59318.0,0.0029042]
[1724099904181,1.58532,59319.0,59318.0,0.0029042]
[1724099904381,1.75666877,59319.0,59318.0,0.0029042]
[1724099905149,1.92801754,59319.0,59318.0,0.0029042]
[1724099905571,1.93001754,59319.0,59318.0,0.0029042]
[1724099906658,2.26717754,59319.0,59318.0,0.0029042]
[1724099906869,2.31766209,59319.0,59318.0,0.0029042]
[1724099907217,2.26717754,59319.0,59318.0,0.0029042]
[1724099907757,2.39017754,59319.0,59318.0,0.0029042]
[1724099907962,2.44557833,59319.0,59318.0,0.0029042]
[1724099908141,0.508867,59304.0,59301.0,0.0009042]
[1724099908350,1.183357,59304.0,59301.0,0.0009042]
[1724099908595,1.35670577,59304.0,59301.0,0.0009042]
[1724099909109,1.180357,59304.0,59301.0,0.0009042]